[Event "Early-Titled-Tuesday-Blitz-April-16-2024"]
[Site "Chess.com"]
[Date "2024.04.16"]
[Round "3"]
[White "Aleksandar-Topalov"]
[Black "Kotofeyca"]
[Result "1-0"]
[WhiteElo "2342"]
[BlackElo "2504"]
[TimeControl "180+1"]
[EndTime "8:27:52 PDT"]
[Termination "Aleksandar-Topalov won by resignation"]

1. b3 {[%clk 0:03:00.9]} 1... d5 {[%clk 0:02:59.9]} 2. Bb2 {[%clk 0:02:59.9]}
2... Bg4 {[%clk 0:03:00.5]} 3. g3 {[%clk 0:02:57.1]} 3... c6 {[%clk 0:02:59.7]}
4. Bg2 {[%clk 0:02:57.2]} 4... Nd7 {[%clk 0:02:59.3]} 5. Nf3 {[%clk 0:02:57.3]}
5... e6 {[%clk 0:02:56.2]} 6. O-O {[%clk 0:02:56.7]} 6... Ngf6 {[%clk
0:02:56.3]} 7. d3 {[%clk 0:02:56.2]} 7... Bc5 {[%clk 0:02:54.3]} 8. Nbd2 {[%clk
0:02:55.9]} 8... Qe7 {[%clk 0:02:54.2]} 9. a3 {[%clk 0:02:54.8]} 9... O-O {[%clk
0:02:53.3]} 10. Re1 {[%clk 0:02:50.4]} 10... Bh5 {[%clk 0:02:50.4]} 11. h3
{[%clk 0:02:44.3]} 11... a5 {[%clk 0:02:40.2]} 12. e4 {[%clk 0:02:41.4]} 12...
dxe4 {[%clk 0:02:38.6]} 13. dxe4 {[%clk 0:02:40.3]} 13... e5 {[%clk 0:02:35.7]}
14. g4 {[%clk 0:02:33.4]} 14... Bg6 {[%clk 0:02:35.9]} 15. Nh4 {[%clk
0:02:31.7]} 15... Rfe8 {[%clk 0:01:41.3]} 16. Nf5 {[%clk 0:02:31.2]} 16... Bxf5
{[%clk 0:01:41.1]} 17. exf5 {[%clk 0:02:31.2]} 17... Nd5 {[%clk 0:01:39.2]} 18.
Ne4 {[%clk 0:02:27]} 18... f6 {[%clk 0:01:20.2]} 19. Bf1 {[%clk 0:02:15.2]}
19... Red8 {[%clk 0:01:05.7]} 20. Qf3 {[%clk 0:02:14.5]} 20... Kh8 {[%clk
0:00:58.7]} 21. Red1 {[%clk 0:02:01.9]} 21... N7b6 {[%clk 0:00:49.3]} 22. c4
{[%clk 0:01:58.4]} 22... Nf4 {[%clk 0:00:47.1]} 23. a4 {[%clk 0:01:58.3]} 23...
Rxd1 {[%clk 0:00:36.9]} 24. Rxd1 {[%clk 0:01:56.7]} 24... Rd8 {[%clk 0:00:37.4]}
25. Nxc5 {[%clk 0:01:53.4]} 25... Rxd1 {[%clk 0:00:19.3]} 26. Qxd1 {[%clk
0:01:53]} 26... g6 {[%clk 0:00:19]} 27. Ne4 {[%clk 0:01:46.1]} 27... gxf5 {[%clk
0:00:17.4]} 28. gxf5 {[%clk 0:01:42.5]} 28... Nd7 {[%clk 0:00:14.9]} 29. Qd6
{[%clk 0:01:30.2]} 29... Qg7+ {[%clk 0:00:14.4]} 30. Kh2 {[%clk 0:01:30.3]}
30... h5 {[%clk 0:00:10.4]} 31. Nxf6 {[%clk 0:01:10.4]} 31... Qxf6 {[%clk
0:00:06.6]} 32. Qxf6+ {[%clk 0:01:10]} 32... Nxf6 {[%clk 0:00:06]} 33. Bxe5
{[%clk 0:01:10]} 33... Kg7 {[%clk 0:00:05.4]} 34. Bxf4 {[%clk 0:01:07.2]} 1-0

[Event "Early-Titled-Tuesday-Blitz-April-16-2024"]
[Site "Chess.com"]
[Date "2024.04.16"]
[Round "3"]
[White "LuisFSiles"]
[Black "JiiHart"]
[Result "1-0"]
[WhiteElo "2374"]
[BlackElo "2155"]
[TimeControl "180+1"]
[EndTime "8:27:52 PDT"]
[Termination "LuisFSiles won on time"]

1. e4 {[%clk 0:03:00.9]} 1... c5 {[%clk 0:02:59.2]} 2. Nf3 {[%clk 0:03:00.5]}
2... Nc6 {[%clk 0:02:59]} 3. c3 {[%clk 0:02:58.6]} 3... d5 {[%clk 0:02:58.2]} 4.
exd5 {[%clk 0:02:58.7]} 4... Qxd5 {[%clk 0:02:58.5]} 5. d4 {[%clk 0:02:58.5]}
5... cxd4 {[%clk 0:02:58.6]} 6. cxd4 {[%clk 0:02:58.6]} 6... Bg4 {[%clk
0:02:58.6]} 7. Be2 {[%clk 0:02:58]} 7... e6 {[%clk 0:02:58.2]} 8. O-O {[%clk
0:02:54.1]} 8... Nf6 {[%clk 0:02:57.7]} 9. h3 {[%clk 0:02:53.5]} 9... Bh5 {[%clk
0:02:57.2]} 10. Nc3 {[%clk 0:02:52.6]} 10... Qa5 {[%clk 0:02:57]} 11. a3 {[%clk
0:02:49.3]} 11... Be7 {[%clk 0:02:57]} 12. Be3 {[%clk 0:02:43]} 12... O-O {[%clk
0:02:56.5]} 13. Qb3 {[%clk 0:02:43.1]} 13... Qc7 {[%clk 0:02:33.5]} 14. Rac1
{[%clk 0:02:40.6]} 14... Rfd8 {[%clk 0:02:07.8]} 15. Rfd1 {[%clk 0:02:38.9]}
15... Rac8 {[%clk 0:01:55.1]} 16. g4 {[%clk 0:02:37]} 16... Bg6 {[%clk
0:01:53.8]} 17. d5 {[%clk 0:02:28.8]} 17... exd5 {[%clk 0:01:25.7]} 18. Nxd5
{[%clk 0:02:18.3]} 18... Nxd5 {[%clk 0:01:25.3]} 19. Rxd5 {[%clk 0:02:17.7]}
19... Rxd5 {[%clk 0:01:12.1]} 20. Qxd5 {[%clk 0:02:18.6]} 20... Rd8 {[%clk
0:01:02.4]} 21. Qb3 {[%clk 0:02:12.9]} 21... a6 {[%clk 0:00:38.6]} 22. Bb6
{[%clk 0:02:08.5]} 22... Qf4 {[%clk 0:00:22.9]} 23. Be3 {[%clk 0:01:50.2]} 23...
Qc7 {[%clk 0:00:19.8]} 24. Bb6 {[%clk 0:01:19.6]} 24... Qf4 {[%clk 0:00:19.1]}
25. Rc4 {[%clk 0:01:20.2]} 25... Qd6 {[%clk 0:00:02.8]} 26. Bxd8 {[%clk
0:01:18.2]} 26... Bxd8 {[%clk 0:00:03.7]} 27. Rc1 {[%clk 0:01:14.7]} 27... Bc7
{[%clk 0:00:03.1]} 28. Rd1 {[%clk 0:01:13.8]} 28... Qf4 {[%clk 0:00:02.4]} 29.
Qe3 {[%clk 0:01:07.5]} 29... Qxe3 {[%clk 0:00:01.2]} 30. fxe3 {[%clk 0:01:08.4]}
30... h6 {[%clk 0:00:01.1]} 31. Rd7 {[%clk 0:01:06.6]} 31... Bb6 {[%clk
0:00:01.3]} 32. Rxb7 {[%clk 0:01:05.2]} 32... Bxe3+ {[%clk 0:00:01.2]} 33. Kf1
{[%clk 0:01:05.8]} 1-0

[Event "Early-Titled-Tuesday-Blitz-April-16-2024"]
[Site "Chess.com"]
[Date "2024.04.16"]
[Round "3"]
[White "KorolDimitriy75"]
[Black "Let_it_be_1"]
[Result "0-1"]
[WhiteElo "2308"]
[BlackElo "2590"]
[TimeControl "180+1"]
[EndTime "8:27:54 PDT"]
[Termination "Let_it_be_1 won on time"]

1. d4 {[%clk 0:03:00.9]} 1... d5 {[%clk 0:03:00]} 2. c4 {[%clk 0:03:00.8]} 2...
e6 {[%clk 0:03:00.5]} 3. Nc3 {[%clk 0:03:00.6]} 3... Be7 {[%clk 0:03:00.9]} 4.
cxd5 {[%clk 0:02:59.9]} 4... exd5 {[%clk 0:03:00.8]} 5. Bf4 {[%clk 0:03:00.5]}
5... c6 {[%clk 0:03:01.2]} 6. e3 {[%clk 0:03:00.5]} 6... Bf5 {[%clk 0:03:01.5]}
7. g4 {[%clk 0:02:59.7]} 7... Be6 {[%clk 0:03:01.7]} 8. h4 {[%clk 0:02:58.1]}
8... Nd7 {[%clk 0:02:58.5]} 9. g5 {[%clk 0:02:51.6]} 9... h6 {[%clk 0:02:55.9]}
10. gxh6 {[%clk 0:02:35.5]} 10... Nxh6 {[%clk 0:02:55.4]} 11. Nf3 {[%clk
0:02:27.3]} 11... Bg4 {[%clk 0:02:50.4]} 12. Be2 {[%clk 0:02:26.2]} 12... Nf5
{[%clk 0:02:44.8]} 13. Ne5 {[%clk 0:02:15.8]} 13... Bxe2 {[%clk 0:02:41.3]} 14.
Qxe2 {[%clk 0:02:16.7]} 14... Nxe5 {[%clk 0:02:25.9]} 15. Bxe5 {[%clk
0:02:17.6]} 15... Rxh4 {[%clk 0:02:24.4]} 16. Rxh4 {[%clk 0:01:40.8]} 16... Bxh4
{[%clk 0:02:24.1]} 17. O-O-O {[%clk 0:01:35.2]} 17... Qe7 {[%clk 0:02:09.5]} 18.
e4 {[%clk 0:00:47.5]} 18... dxe4 {[%clk 0:02:06.6]} 19. Nxe4 {[%clk 0:00:47.5]}
19... O-O-O {[%clk 0:01:46.6]} 20. Qg4 {[%clk 0:00:40.5]} 20... g6 {[%clk
0:01:46.7]} 21. Kb1 {[%clk 0:00:12.4]} 21... Qe6 {[%clk 0:01:31.2]} 22. Ng3
{[%clk 0:00:10]} 22... Bxg3 {[%clk 0:01:28.2]} 23. fxg3 {[%clk 0:00:09.4]} 23...
f6 {[%clk 0:01:09.7]} 24. Bf4 {[%clk 0:00:07.6]} 24... Qe4+ {[%clk 0:01:07.5]}
25. Ka1 {[%clk 0:00:07.4]} 25... g5 {[%clk 0:01:08]} 26. d5 {[%clk 0:00:04.7]}
26... gxf4 {[%clk 0:01:04.7]} 27. dxc6 {[%clk 0:00:04.7]} 27... Rxd1+ {[%clk
0:00:56.1]} 28. Qxd1 {[%clk 0:00:05.6]} 28... bxc6 {[%clk 0:00:56.3]} 29. gxf4
{[%clk 0:00:04.9]} 29... Ne3 {[%clk 0:00:55.8]} 0-1

[Event "Early-Titled-Tuesday-Blitz-April-16-2024"]
[Site "Chess.com"]
[Date "2024.04.16"]
[Round "3"]
[White "rionelG"]
[Black "cansun"]
[Result "1-0"]
[WhiteElo "2213"]
[BlackElo "2403"]
[TimeControl "180+1"]
[EndTime "8:27:54 PDT"]
[Termination "rionelG won by resignation"]

1. e4 {[%clk 0:02:45.3]} 1... c5 {[%clk 0:03:00.3]} 2. g3 {[%clk 0:02:41.1]}
2... Nc6 {[%clk 0:02:59.8]} 3. Bg2 {[%clk 0:02:41.5]} 3... g6 {[%clk 0:03:00.4]}
4. Ne2 {[%clk 0:02:42]} 4... Bg7 {[%clk 0:03:01]} 5. c3 {[%clk 0:02:42.8]} 5...
e6 {[%clk 0:02:44.6]} 6. d4 {[%clk 0:02:42.3]} 6... cxd4 {[%clk 0:02:45]} 7.
cxd4 {[%clk 0:02:43.2]} 7... d5 {[%clk 0:02:44]} 8. exd5 {[%clk 0:02:44.1]} 8...
exd5 {[%clk 0:02:44.1]} 9. Nbc3 {[%clk 0:02:44.8]} 9... Nge7 {[%clk 0:02:44.3]}
10. O-O {[%clk 0:02:45.4]} 10... O-O {[%clk 0:02:44.4]} 11. Bg5 {[%clk 0:02:46]}
11... Be6 {[%clk 0:02:27.3]} 12. Bxe7 {[%clk 0:02:29]} 12... Nxe7 {[%clk
0:02:23.8]} 13. Nf4 {[%clk 0:02:28.6]} 13... Qb6 {[%clk 0:02:18.8]} 14. Na4
{[%clk 0:02:26]} 14... Qxd4 {[%clk 0:02:04.1]} 15. Qxd4 {[%clk 0:02:25.7]} 15...
Bxd4 {[%clk 0:02:04.7]} 16. Rad1 {[%clk 0:02:25.6]} 16... Nc6 {[%clk 0:01:42.7]}
17. Nxd5 {[%clk 0:01:39.2]} 17... Rfd8 {[%clk 0:01:35.5]} 18. Nc7 {[%clk
0:01:30.4]} 18... Rac8 {[%clk 0:01:29.8]} 19. Nxe6 {[%clk 0:01:30.1]} 19... fxe6
{[%clk 0:01:30.7]} 20. Bh3 {[%clk 0:01:21.9]} 20... Rd6 {[%clk 0:01:23.3]} 21.
Nc3 {[%clk 0:01:18.7]} 21... Rcd8 {[%clk 0:01:14.1]} 22. Ne4 {[%clk 0:01:15.7]}
22... Bxf2+ {[%clk 0:00:48.4]} 23. Nxf2 {[%clk 0:01:15.4]} 23... Rd2 {[%clk
0:00:48.5]} 24. Bxe6+ {[%clk 0:01:11.6]} 24... Kg7 {[%clk 0:00:48.2]} 25. Bb3
{[%clk 0:01:06.6]} 25... Rxb2 {[%clk 0:00:09.2]} 26. Rxd8 {[%clk 0:01:05.6]}
26... Nxd8 {[%clk 0:00:10.1]} 27. Rd1 {[%clk 0:01:05.9]} 27... Nc6 {[%clk
0:00:09.8]} 28. Rd7+ {[%clk 0:01:06]} 28... Kf6 {[%clk 0:00:09.8]} 29. Rf7+
{[%clk 0:01:01.8]} 29... Ke5 {[%clk 0:00:09.7]} 30. Nd3+ {[%clk 0:01:01.1]} 1-0

[Event "Early-Titled-Tuesday-Blitz-April-16-2024"]
[Site "Chess.com"]
[Date "2024.04.16"]
[Round "3"]
[White "kripri"]
[Black "JAN2404"]
[Result "1-0"]
[WhiteElo "2344"]
[BlackElo "1911"]
[TimeControl "180+1"]
[EndTime "8:27:54 PDT"]
[Termination "kripri won by resignation"]

1. e4 {[%clk 0:03:00.9]} 1... c5 {[%clk 0:02:59.7]} 2. Nf3 {[%clk 0:03:00.4]}
2... d6 {[%clk 0:02:59.9]} 3. d4 {[%clk 0:03:00.9]} 3... cxd4 {[%clk 0:03:00.3]}
4. Nxd4 {[%clk 0:03:01.8]} 4... Nf6 {[%clk 0:03:00.6]} 5. Nc3 {[%clk 0:03:02.2]}
5... Nc6 {[%clk 0:03:01]} 6. Bg5 {[%clk 0:02:57.7]} 6... e6 {[%clk 0:03:00.9]}
7. f3 {[%clk 0:02:54.2]} 7... Bd7 {[%clk 0:03:00.7]} 8. Qd2 {[%clk 0:02:53.3]}
8... a6 {[%clk 0:03:01]} 9. O-O-O {[%clk 0:02:49.6]} 9... b5 {[%clk 0:03:00.5]}
10. h4 {[%clk 0:02:43.6]} 10... Be7 {[%clk 0:03:00.4]} 11. g4 {[%clk 0:02:39.5]}
11... Rc8 {[%clk 0:02:50.2]} 12. Kb1 {[%clk 0:02:33.5]} 12... Ne5 {[%clk
0:02:46.6]} 13. Bxf6 {[%clk 0:02:14.7]} 13... Bxf6 {[%clk 0:02:45.2]} 14. g5
{[%clk 0:02:15.1]} 14... Be7 {[%clk 0:02:33.1]} 15. f4 {[%clk 0:02:15.1]} 15...
Nc4 {[%clk 0:02:27.6]} 16. Bxc4 {[%clk 0:02:14.7]} 16... Rxc4 {[%clk 0:02:27.1]}
17. Qd3 {[%clk 0:01:48.1]} 17... Qc7 {[%clk 0:02:07.7]} 18. f5 {[%clk
0:01:41.5]} 18... b4 {[%clk 0:01:40.9]} 19. fxe6 {[%clk 0:01:38.9]} 19... Bxe6
{[%clk 0:01:36.3]} 20. Nxe6 {[%clk 0:01:33.4]} 20... fxe6 {[%clk 0:01:37.2]} 21.
Ne2 {[%clk 0:01:29.3]} 21... Qc6 {[%clk 0:01:16.2]} 22. Nd4 {[%clk 0:01:28.3]}
22... Qc8 {[%clk 0:01:03]} 23. Rhf1 {[%clk 0:01:23.6]} 23... Kd7 {[%clk
0:00:57.8]} 24. Qh3 {[%clk 0:01:20.3]} 24... Rxd4 {[%clk 0:00:36.1]} 25. Rxd4
{[%clk 0:01:19.6]} 25... Qc5 {[%clk 0:00:36.7]} 26. Rfd1 {[%clk 0:01:17.1]}
26... a5 {[%clk 0:00:33.5]} 27. Rd5 {[%clk 0:01:10.9]} 27... Qc7 {[%clk
0:00:29.4]} 28. e5 {[%clk 0:01:10.2]} 28... Rc8 {[%clk 0:00:26.9]} 29. R5d2
{[%clk 0:00:57.2]} 29... d5 {[%clk 0:00:20.7]} 30. Rxd5+ {[%clk 0:00:56.5]}
30... Ke8 {[%clk 0:00:20]} 31. R5d2 {[%clk 0:00:44.8]} 31... a4 {[%clk
0:00:18.1]} 32. Qxe6 {[%clk 0:00:42.5]} 1-0

[Event "Early-Titled-Tuesday-Blitz-April-16-2024"]
[Site "Chess.com"]
[Date "2024.04.16"]
[Round "3"]
[White "Kostukov_Alex"]
[Black "Happy1712Drummer"]
[Result "1-0"]
[WhiteElo "2276"]
[BlackElo "2483"]
[TimeControl "180+1"]
[EndTime "8:27:55 PDT"]
[Termination "Kostukov_Alex won by resignation"]

1. g3 {[%clk 0:02:57.8]} 1... d5 {[%clk 0:02:57.3]} 2. Bg2 {[%clk 0:02:58.2]}
2... c5 {[%clk 0:02:57.3]} 3. d3 {[%clk 0:02:58.4]} 3... g6 {[%clk 0:02:57.1]}
4. e4 {[%clk 0:02:59]} 4... d4 {[%clk 0:02:53]} 5. f4 {[%clk 0:02:58.8]} 5...
Bg7 {[%clk 0:02:53.1]} 6. Nf3 {[%clk 0:02:58.9]} 6... Nc6 {[%clk 0:02:53.4]} 7.
O-O {[%clk 0:02:57.3]} 7... Nf6 {[%clk 0:02:53.1]} 8. a4 {[%clk 0:02:57.4]} 8...
O-O {[%clk 0:02:53.5]} 9. Na3 {[%clk 0:02:56.5]} 9... Bg4 {[%clk 0:02:53.2]} 10.
h3 {[%clk 0:02:56.2]} 10... Bd7 {[%clk 0:02:52.1]} 11. Nc4 {[%clk 0:02:52.2]}
11... a6 {[%clk 0:02:50.6]} 12. a5 {[%clk 0:02:52.1]} 12... Ne8 {[%clk 0:02:46]}
13. Bd2 {[%clk 0:02:46]} 13... Nd6 {[%clk 0:02:46]} 14. Nb6 {[%clk 0:02:41.6]}
14... Rb8 {[%clk 0:02:45.8]} 15. Nxd7 {[%clk 0:02:40.6]} 15... Qxd7 {[%clk
0:02:45.8]} 16. g4 {[%clk 0:02:29.8]} 16... Qc7 {[%clk 0:02:37.6]} 17. f5 {[%clk
0:02:18.2]} 17... Ne5 {[%clk 0:02:23.7]} 18. b3 {[%clk 0:01:57.3]} 18... Nb5
{[%clk 0:02:12.8]} 19. Bf4 {[%clk 0:01:41.9]} 19... Nc3 {[%clk 0:02:06.4]} 20.
Qd2 {[%clk 0:01:38.8]} 20... Rbd8 {[%clk 0:01:52.2]} 21. g5 {[%clk 0:01:26.9]}
21... Nxf3+ {[%clk 0:01:37.1]} 22. Rxf3 {[%clk 0:01:23.6]} 22... Be5 {[%clk
0:01:36.7]} 23. Raf1 {[%clk 0:01:18.9]} 23... Bxf4 {[%clk 0:01:25.8]} 24. Rxf4
{[%clk 0:01:16.8]} 24... Qxa5 {[%clk 0:01:26.1]} 25. f6 {[%clk 0:01:13.9]} 25...
exf6 {[%clk 0:01:15.3]} 26. gxf6 {[%clk 0:01:14.8]} 26... h5 {[%clk 0:01:14]}
27. Rf5 {[%clk 0:01:05.6]} 27... Kh7 {[%clk 0:01:12.8]} 28. Rxh5+ {[%clk
0:00:50.1]} 28... gxh5 {[%clk 0:01:10.6]} 29. Qg5 {[%clk 0:00:50.5]} 29... Ne2+
{[%clk 0:00:52.1]} 30. Kh2 {[%clk 0:00:44.6]} 30... Qc7+ {[%clk 0:00:51.1]} 31.
e5 {[%clk 0:00:43]} 1-0

[Event "Early-Titled-Tuesday-Blitz-April-16-2024"]
[Site "Chess.com"]
[Date "2024.04.16"]
[Round "3"]
[White "TheoSlade"]
[Black "scarabee43"]
[Result "0-1"]
[WhiteElo "2374"]
[BlackElo "2832"]
[TimeControl "180+1"]
[EndTime "8:27:56 PDT"]
[Termination "scarabee43 won by resignation"]

1. d4 {[%clk 0:03:00.9]} 1... Nf6 {[%clk 0:02:59.5]} 2. c4 {[%clk 0:03:01.2]}
2... e6 {[%clk 0:02:59.7]} 3. g3 {[%clk 0:03:01.7]} 3... d5 {[%clk 0:02:58.9]}
4. Bg2 {[%clk 0:03:02.2]} 4... Be7 {[%clk 0:02:59]} 5. Nf3 {[%clk 0:03:02.9]}
5... O-O {[%clk 0:02:59.3]} 6. O-O {[%clk 0:03:03.6]} 6... a5 {[%clk 0:02:57.8]}
7. cxd5 {[%clk 0:02:57.6]} 7... exd5 {[%clk 0:02:56.8]} 8. Nc3 {[%clk 0:02:57]}
8... c6 {[%clk 0:02:55.6]} 9. Re1 {[%clk 0:02:48.4]} 9... Re8 {[%clk 0:02:51.1]}
10. Bg5 {[%clk 0:02:40.4]} 10... Nbd7 {[%clk 0:02:46.1]} 11. Ne5 {[%clk
0:02:31.7]} 11... Nxe5 {[%clk 0:02:26]} 12. dxe5 {[%clk 0:02:31.9]} 12... Ng4
{[%clk 0:02:26.1]} 13. Bxe7 {[%clk 0:02:30.3]} 13... Qxe7 {[%clk 0:02:25.8]} 14.
e4 {[%clk 0:02:24]} 14... d4 {[%clk 0:02:19]} 15. Qxd4 {[%clk 0:02:21.7]} 15...
Rd8 {[%clk 0:02:19.4]} 16. Nd5 {[%clk 0:02:04.1]} 16... cxd5 {[%clk 0:02:14.2]}
17. exd5 {[%clk 0:02:04.7]} 17... Qb4 {[%clk 0:02:08.2]} 18. Rad1 {[%clk
0:01:48]} 18... Qxd4 {[%clk 0:02:01.7]} 19. Rxd4 {[%clk 0:01:47.9]} 19... Nh6
{[%clk 0:01:53.3]} 20. Rc4 {[%clk 0:01:36.1]} 20... Bf5 {[%clk 0:01:43.7]} 21.
Rc7 {[%clk 0:01:32.8]} 21... Rd7 {[%clk 0:01:42.5]} 22. Rec1 {[%clk 0:01:28.3]}
22... Rxc7 {[%clk 0:01:38.6]} 23. Rxc7 {[%clk 0:01:29.2]} 23... Rc8 {[%clk
0:01:38]} 24. Rxb7 {[%clk 0:01:03.5]} 24... Rc1+ {[%clk 0:01:37.2]} 25. Bf1
{[%clk 0:01:04.1]} 25... g5 {[%clk 0:01:34]} 26. Kg2 {[%clk 0:00:54.9]} 26...
Be4+ {[%clk 0:01:33.4]} 27. f3 {[%clk 0:00:55.2]} 27... Bxd5 {[%clk 0:01:33.5]}
28. Rb5 {[%clk 0:00:49.5]} 28... Rc2+ {[%clk 0:01:21.1]} 29. Kg1 {[%clk
0:00:40.5]} 29... Bxf3 {[%clk 0:01:20.5]} 30. a4 {[%clk 0:00:19.6]} 30... Ng4
{[%clk 0:01:17.4]} 31. h3 {[%clk 0:00:14]} 31... Ne3 {[%clk 0:01:17.3]} 32. Bd3
{[%clk 0:00:14.2]} 32... Rg2+ {[%clk 0:01:15.7]} 33. Kh1 {[%clk 0:00:14.8]}
33... Rxb2+ {[%clk 0:01:15.5]} 34. Kg1 {[%clk 0:00:13.4]} 34... Rg2+ {[%clk
0:01:15.7]} 35. Kh1 {[%clk 0:00:13.6]} 35... Rxg3+ {[%clk 0:01:13.4]} 36. Kh2
{[%clk 0:00:14.1]} 36... Rg2+ {[%clk 0:01:11.7]} 37. Kh1 {[%clk 0:00:14.8]}
37... Rd2+ {[%clk 0:01:09.4]} 38. Kg1 {[%clk 0:00:15.5]} 38... Rxd3 {[%clk
0:01:09.3]} 39. Kf2 {[%clk 0:00:16]} 39... Nd1+ {[%clk 0:01:09.2]} 40. Ke1
{[%clk 0:00:15.8]} 40... Nc3 {[%clk 0:01:09.5]} 41. Rxa5 {[%clk 0:00:15.4]}
41... Ne4 {[%clk 0:01:09.1]} 42. Rd5 {[%clk 0:00:12.6]} 42... Rxd5 {[%clk
0:01:08.9]} 0-1

[Event "Early-Titled-Tuesday-Blitz-April-16-2024"]
[Site "Chess.com"]
[Date "2024.04.16"]
[Round "3"]
[White "Mikhail_Golubev"]
[Black "ccccvhhhj"]
[Result "0-1"]
[WhiteElo "2595"]
[BlackElo "2446"]
[TimeControl "180+1"]
[EndTime "8:27:56 PDT"]
[Termination "ccccvhhhj won on time"]

1. e4 {[%clk 0:03:00.9]} 1... e6 {[%clk 0:02:58.3]} 2. d4 {[%clk 0:02:59.7]}
2... d5 {[%clk 0:02:59.2]} 3. e5 {[%clk 0:03:00.1]} 3... c5 {[%clk 0:02:59.3]}
4. c3 {[%clk 0:03:00.7]} 4... Nc6 {[%clk 0:02:59.9]} 5. Nf3 {[%clk 0:03:00.8]}
5... Bd7 {[%clk 0:03:00.6]} 6. Be2 {[%clk 0:03:00.4]} 6... Qc7 {[%clk
0:03:01.2]} 7. O-O {[%clk 0:02:55.9]} 7... f6 {[%clk 0:03:01.5]} 8. Re1 {[%clk
0:02:43]} 8... O-O-O {[%clk 0:03:01]} 9. Bf4 {[%clk 0:02:26.7]} 9... h6 {[%clk
0:03:01]} 10. c4 {[%clk 0:02:05.2]} 10... g5 {[%clk 0:02:51.8]} 11. Bg3 {[%clk
0:02:04.9]} 11... g4 {[%clk 0:02:51.5]} 12. exf6 {[%clk 0:01:47.7]} 12... Bd6
{[%clk 0:02:50.7]} 13. Bxd6 {[%clk 0:01:13.3]} 13... Qxd6 {[%clk 0:02:51.6]} 14.
Ne5 {[%clk 0:01:13.3]} 14... Nxe5 {[%clk 0:02:44.4]} 15. dxe5 {[%clk 0:01:13.7]}
15... Qxe5 {[%clk 0:02:45.3]} 16. Bxg4 {[%clk 0:01:03.9]} 16... Qxf6 {[%clk
0:02:42.3]} 17. cxd5 {[%clk 0:00:57.4]} 17... Ne7 {[%clk 0:02:22.4]} 18. d6
{[%clk 0:00:18.8]} 18... Nc6 {[%clk 0:02:22.9]} 19. Nc3 {[%clk 0:00:18]} 19...
Rhg8 {[%clk 0:02:20.4]} 20. Ne4 {[%clk 0:00:17]} 20... Qg6 {[%clk 0:02:14.1]}
21. Bh3 {[%clk 0:00:17]} 21... e5 {[%clk 0:02:05.6]} 22. Bxd7+ {[%clk
0:00:16.5]} 22... Rxd7 {[%clk 0:02:05]} 23. g3 {[%clk 0:00:17]} 23... Nd4 {[%clk
0:02:04.8]} 24. Rc1 {[%clk 0:00:16.8]} 24... Rf7 {[%clk 0:01:44.2]} 25. Nxc5
{[%clk 0:00:09.1]} 25... Kb8 {[%clk 0:01:41.4]} 26. Rc3 {[%clk 0:00:06.7]} 26...
Qxd6 {[%clk 0:01:37.1]} 27. Ne4 {[%clk 0:00:04.8]} 27... Qd5 {[%clk 0:01:32.9]}
28. Qc1 {[%clk 0:00:03.2]} 28... a6 {[%clk 0:01:21.4]} 29. Rce3 {[%clk
0:00:03.1]} 29... Rc8 {[%clk 0:01:17.8]} 30. Qd1 {[%clk 0:00:02.8]} 30... Rd8
{[%clk 0:01:16.6]} 31. Qh5 {[%clk 0:00:02.4]} 31... Rc7 {[%clk 0:01:06]} 32. Kg2
{[%clk 0:00:02.1]} 32... Rc2 {[%clk 0:01:05]} 33. h4 {[%clk 0:00:01.2]} 33...
Rf8 {[%clk 0:01:03.4]} 0-1

[Event "Early-Titled-Tuesday-Blitz-April-16-2024"]
[Site "Chess.com"]
[Date "2024.04.16"]
[Round "3"]
[White "GMCarbone"]
[Black "Der_Balak_3Halak"]
[Result "0-1"]
[WhiteElo "2589"]
[BlackElo "2439"]
[TimeControl "180+1"]
[EndTime "8:27:56 PDT"]
[Termination "Der_Balak_3Halak won by resignation"]

1. d4 {[%clk 0:03:00.9]} 1... d5 {[%clk 0:03:00.7]} 2. c4 {[%clk 0:02:59]} 2...
c6 {[%clk 0:03:01.3]} 3. Nf3 {[%clk 0:02:59.1]} 3... Nf6 {[%clk 0:03:02]} 4. e3
{[%clk 0:02:59.2]} 4... e6 {[%clk 0:03:02.5]} 5. Nc3 {[%clk 0:02:59.7]} 5... Bd6
{[%clk 0:03:00.5]} 6. Qc2 {[%clk 0:02:59.7]} 6... Nbd7 {[%clk 0:03:00.6]} 7. Bd3
{[%clk 0:03:00.1]} 7... dxc4 {[%clk 0:03:00.1]} 8. Bxc4 {[%clk 0:03:01]} 8... b5
{[%clk 0:03:00]} 9. Be2 {[%clk 0:03:01]} 9... Bb7 {[%clk 0:03:00.9]} 10. e4
{[%clk 0:03:00.8]} 10... e5 {[%clk 0:03:01.4]} 11. dxe5 {[%clk 0:03:00.8]} 11...
Nxe5 {[%clk 0:03:01.2]} 12. Nd4 {[%clk 0:02:59.8]} 12... O-O {[%clk 0:02:56.9]}
13. Nf5 {[%clk 0:02:57]} 13... b4 {[%clk 0:02:51.2]} 14. Na4 {[%clk 0:02:47.2]}
14... c5 {[%clk 0:02:43.5]} 15. Nxd6 {[%clk 0:02:22]} 15... Qxd6 {[%clk
0:02:41]} 16. Nxc5 {[%clk 0:02:22.2]} 16... Qc7 {[%clk 0:02:23.2]} 17. Bf4
{[%clk 0:01:58.6]} 17... Nxe4 {[%clk 0:02:03.3]} 18. Rc1 {[%clk 0:01:50.9]}
18... Rac8 {[%clk 0:02:03]} 19. Be3 {[%clk 0:01:16.1]} 19... Nd7 {[%clk
0:01:41.1]} 20. Nxb7 {[%clk 0:01:09.4]} 20... Qxb7 {[%clk 0:01:19.5]} 21. Qd1
{[%clk 0:01:01.8]} 21... Ne5 {[%clk 0:01:11.3]} 22. O-O {[%clk 0:00:58.2]} 22...
Rfd8 {[%clk 0:01:07.4]} 23. Rxc8 {[%clk 0:00:57.3]} 23... Qxc8 {[%clk
0:01:08.3]} 24. Qa4 {[%clk 0:00:49.4]} 24... Nd3 {[%clk 0:00:59.6]} 25. Bxd3
{[%clk 0:00:37.6]} 25... Rxd3 {[%clk 0:01:00.5]} 26. Qxb4 {[%clk 0:00:37.4]}
26... Qe8 {[%clk 0:00:51.5]} 27. Bxa7 {[%clk 0:00:35]} 27... Nd2 {[%clk
0:00:45.1]} 28. h3 {[%clk 0:00:32.5]} 28... Nxf1 {[%clk 0:00:43]} 29. Qb5 {[%clk
0:00:11.6]} 29... Qxb5 {[%clk 0:00:42]} 0-1